bitfinex-derivatives/quotes_BTCF0:USTF0_20251109
["timestamp","ask_amount","ask_price","bid_price","bid_amount"]
[1762683268927,0.31525091,101710.0,101700.0,0.3618]
[1762683273334,0.31525091,101710.0,101700.0,0.34580169]
[1762683273841,1.03823555,101710.0,101700.0,0.34580169]
[1762683275035,0.28331,101700.0,101690.0,0.36094705]
[1762683275331,0.51923198,101700.0,101690.0,0.45924705]
[1762683276134,0.51923198,101700.0,101690.0,0.00214705]
[1762683276332,0.55435465,101700.0,101690.0,0.00214705]
[1762683277136,0.55435465,101700.0,101690.0,0.00114705]
[1762683277737,0.55435465,101700.0,101690.0,0.00014705]
[1762683278037,0.55535465,101700.0,101690.0,0.00014705]
[1762683279134,0.55535465,101700.0,101690.0,0.14844705]
[1762683279333,0.55535465,101700.0,101690.0,0.50924705]
[1762683281137,0.43237001,101700.0,101690.0,0.50924705]
[1762683281636,0.52015765,101700.0,101690.0,0.50924705]
[1762683283139,0.52015765,101700.0,101690.0,0.60754705]
[1762683283341,0.43237001,101700.0,101690.0,0.60754705]
[1762683284437,0.43137001,101700.0,101690.0,0.60854705]
[1762683284836,0.43137001,101700.0,101690.0,0.61054705]
[1762683285342,0.50159794,101700.0,101690.0,0.61054705]
[1762683287040,0.21470001,101700.0,101690.0,0.85638705]
[1762683287742,0.14806001,101700.0,101690.0,0.85638705]
[1762683288035,0.20679001,101700.0,101690.0,0.85638705]
[1762683288941,0.40905001,101700.0,101690.0,0.85638705]
[1762683290133,0.40905001,101700.0,101690.0,0.62054704]
[1762683290540,0.20679001,101700.0,101690.0,0.62054704]
[1762683290939,0.20679001,101700.0,101690.0,0.86638704]
[1762683291140,0.14806001,101700.0,101690.0,0.62054704]
[1762683291442,0.14806001,101700.0,101690.0,0.86638704]
[1762683292846,0.14806001,101700.0,101690.0,0.96474794]
[1762683293046,0.14806001,101700.0,101690.0,0.71890794]
[1762683293548,0.14806001,101700.0,101690.0,0.86638704]
[1762683294144,0.14806001,101700.0,101690.0,0.62054704]
[1762683294343,0.14678821,101700.0,101690.0,0.96510794]
[1762683294546,0.14678821,101700.0,101690.0,0.86674704]
[1762683294746,0.14678821,101700.0,101690.0,1.11258704]
[1762683295144,0.14678821,101700.0,101690.0,0.62054704]
[1762683295339,0.14678821,101700.0,101690.0,0.86638704]
[1762683295540,0.14678821,101700.0,101690.0,0.62054704]
[1762683296646,0.14678821,101700.0,101690.0,0.86638704]
[1762683296841,0.14678821,101700.0,101690.0,0.62054704]
[1762683297048,0.14678821,101700.0,101690.0,0.86638704]
[1762683298844,0.14678821,101700.0,101690.0,0.62054704]
[1762683299549,0.14678821,101700.0,101690.0,0.86638704]
[1762683299947,0.39467821,101700.0,101690.0,0.86638704]
[1762683300144,0.39467821,101700.0,101690.0,0.62054704]
[1762683300547,0.39467821,101700.0,101690.0,0.86674704]
[1762683300951,0.39467821,101700.0,101690.0,1.11258704]
[1762683301547,0.39467821,101700.0,101690.0,0.86674704]
[1762683302053,0.14678821,101700.0,101690.0,1.11258704]
[1762683302451,0.20270821,101700.0,101690.0,1.11258704]
[1762683302654,0.20270821,101700.0,101690.0,0.86674704]
[1762683302955,0.20270821,101700.0,101690.0,1.11258704]
[1762683303154,0.20270821,101700.0,101690.0,0.86674704]
[1762683304342,0.20270821,101700.0,101690.0,1.11258704]
[1762683304843,0.30155821,101700.0,101690.0,1.11258704]
[1762683305046,0.39467821,101700.0,101690.0,0.86674704]
[1762683306856,0.30155821,101700.0,101690.0,1.11258704]
[1762683307042,0.39467821,101700.0,101690.0,1.11258704]
[1762683307247,0.30155821,101700.0,101690.0,1.21094794]
[1762683308456,0.20270821,101700.0,101690.0,1.21094794]
[1762683308754,0.20270821,101700.0,101690.0,0.96510794]
[1762683308955,0.20270821,101700.0,101690.0,1.21094794]
[1762683309256,0.30155821,101700.0,101690.0,1.11258704]
[1762683309955,0.30155821,101700.0,101690.0,1.11458704]
[1762683310153,0.39467821,101700.0,101690.0,0.86774704]
[1762683310344,0.39467821,101700.0,101690.0,0.87174704]
[1762683310950,0.39467821,101700.0,101690.0,1.1402666]
[1762683311251,0.24637821,101700.0,101690.0,1.2416275]
[1762683311458,0.39435912,101700.0,101690.0,1.2416275]
[1762683311756,0.30123912,101700.0,101690.0,0.9957875]
[1762683311957,0.30123912,101700.0,101690.0,1.2416275]
[1762683312150,0.30123912,101700.0,101690.0,0.9957875]
[1762683312951,0.30123912,101700.0,101690.0,1.1432666]
[1762683313557,0.30123912,101700.0,101690.0,1.2416276]
[1762683314355,0.39435912,101700.0,101690.0,1.2416276]
[1762683314658,0.39435912,101700.0,101690.0,1.1432666]
[1762683314857,0.39435912,101700.0,101690.0,0.9957875]
[1762683315157,0.39435912,101700.0,101690.0,1.2416275]
[1762683315658,0.39435912,101700.0,101690.0,0.9957875]
[1762683315854,0.14798091,101700.0,101690.0,0.9957875]
[1762683316063,0.14837,101710.0,101700.0,0.4591513]
[1762683316361,0.14837,101710.0,101700.0,0.85649298]
[1762683316362,0.29533912,101710.0,101700.0,0.85649298]
[1762683316559,0.29533912,101710.0,101700.0,0.82997086]
[1762683317153,0.29533912,101710.0,101700.0,0.58513086]
[1762683317558,0.29533912,101710.0,101700.0,0.58713086]
[1762683317760,0.29533912,101710.0,101700.0,0.73457956]
[1762683317959,0.48730912,101710.0,101700.0,0.73457956]
[1762683318160,0.48730912,101710.0,101700.0,0.48877956]
[1762683318365,0.29533912,101710.0,101700.0,0.73457956]
[1762683318660,0.48730912,101710.0,101700.0,0.48877956]
[1762683318856,0.48730912,101710.0,101700.0,0.73457956]
[1762683319059,0.48730912,101710.0,101700.0,0.48877956]
[1762683319252,0.48730912,101710.0,101700.0,0.58713086]
[1762683319452,0.48730912,101710.0,101700.0,0.83293086]
[1762683319960,0.40755912,101710.0,101700.0,0.83293086]
[1762683320161,0.31443912,101710.0,101700.0,0.98123086]
[1762683320459,0.21558912,101710.0,101700.0,0.98123086]
[1762683320662,0.31443912,101710.0,101700.0,0.98123086]
[1762683321161,0.31443912,101710.0,101700.0,0.73543086]
[1762683321461,0.31443912,101710.0,101700.0,0.98123086]
[1762683321662,0.39435912,101710.0,101700.0,0.73543086]
[1762683321854,0.39435912,101710.0,101700.0,0.98123086]
[1762683323062,0.29550912,101710.0,101700.0,0.98123086]
[1762683323263,0.29550912,101710.0,101700.0,0.73543086]
[1762683323461,0.29550912,101710.0,101700.0,0.98123086]
[1762683324169,0.29550912,101710.0,101700.0,0.99123085]
[1762683324464,0.29550912,101710.0,101700.0,0.89293085]
[1762683324653,0.03144856,101710.0,101700.0,0.99163085]
[1762683324962,0.03144856,101710.0,101700.0,1.23743085]
[1762683325156,0.03144856,101710.0,101700.0,1.26395297]
[1762683328061,0.03144856,101710.0,101700.0,1.01815297]
[1762683328455,0.03144856,101710.0,101700.0,1.26395297]
[1762683328660,0.03144856,101710.0,101700.0,1.01815297]
[1762683328861,0.03144856,101710.0,101700.0,1.26395297]
[1762683329062,0.03144856,101710.0,101700.0,1.33395297]
[1762683329361,0.08655856,101710.0,101700.0,1.08815297]
[1762683329867,0.08655856,101710.0,101700.0,1.33395297]
[1762683330859,0.03144856,101710.0,101700.0,1.33395297]
[1762683331260,0.03144856,101710.0,101700.0,1.3692982]
[1762683331661,0.03144856,101710.0,101700.0,1.1234982]
[1762683331967,0.00014705,101720.0,101710.0,0.32935144]
[1762683332168,0.00014705,101720.0,101710.0,0.97329482]
[1762683332367,0.06862,101730.0,101720.0,0.46898494]
[1762683332669,0.23802,101740.0,101720.0,0.96454891]
[1762683332870,0.23802,101740.0,101730.0,0.5574224]
[1762683333172,0.38460005,101740.0,101730.0,0.48580196]
[1762683333354,0.38460005,101740.0,101730.0,0.82982196]
[1762683333561,0.38460005,101740.0,101730.0,0.48563563]
[1762683333870,0.38460005,101740.0,101730.0,0.51212804]
[1762683334065,0.38460005,101740.0,101730.0,0.85617044]
[1762683334369,0.38460005,101740.0,101730.0,0.58395803]
[1762683335165,0.23721,101780.0,101770.0,0.3608]
[1762683335369,0.1821,101770.0,101760.0,0.1348847]
[1762683335559,0.23721,101770.0,101760.0,0.0530892]
[1762683335756,0.38539804,101770.0,101760.0,0.75824493]
[1762683335959,0.38539804,101770.0,101760.0,0.83004044]
[1762683336871,0.38539804,101770.0,101760.0,0.73274704]
[1762683337564,0.38539804,101770.0,101760.0,0.83104044]
[1762683337870,0.38539804,101770.0,101760.0,0.73274704]
[1762683338170,0.38539804,101770.0,101760.0,0.73374704]
[1762683338970,0.38539804,101770.0,101760.0,0.83204044]
[1762683339172,0.38539804,101770.0,101760.0,0.73374704]
[1762683339571,0.38539804,101770.0,101760.0,0.83204044]
[1762683339763,0.38539804,101770.0,101760.0,0.73374704]
[1762683339969,0.38539804,101770.0,101760.0,0.83204044]
[1762683340370,0.38539804,101770.0,101760.0,0.73374704]
[1762683340572,0.38539804,101770.0,101760.0,1.12824704]
[1762683341076,0.38539804,101770.0,101760.0,1.22654044]
[1762683341274,0.38539804,101770.0,101760.0,1.12824704]
[1762683341876,0.38539804,101770.0,101760.0,1.11824705]
[1762683342177,0.38539804,101770.0,101760.0,1.12824704]
[1762683347378,0.38539804,101770.0,101760.0,1.22654044]
[1762683348687,0.38539804,101770.0,101760.0,1.12824704]
[1762683350191,0.38539804,101770.0,101760.0,1.22654704]
[1762683351089,0.38539804,101770.0,101760.0,1.32484044]
[1762683353492,0.38539804,101770.0,101760.0,1.22654704]
[1762683354086,0.38539804,101770.0,101760.0,1.32484044]
[1762683354494,0.38539804,101770.0,101760.0,1.22654704]
[1762683355578,0.38539804,101770.0,101760.0,0.88204704]
[1762683355783,0.38539804,101770.0,101760.0,0.90848523]
[1762683355991,0.38539804,101770.0,101760.0,0.88204704]
[1762683356879,0.38539804,101770.0,101760.0,0.88104704]
[1762683357085,0.38539804,101770.0,101760.0,0.88204704]
[1762683357381,0.38539804,101770.0,101760.0,0.98034704]
[1762683357690,0.38539804,101770.0,101760.0,0.97934704]
[1762683357894,0.38539804,101770.0,101760.0,0.98034704]
[1762683360294,0.38539804,101770.0,101760.0,1.00688393]
[1762683364590,0.38539804,101770.0,101760.0,0.99688394]
[1762683364791,0.38539804,101770.0,101760.0,1.00688393]
[1762683364995,0.38539804,101770.0,101760.0,1.10517733]
[1762683365389,0.38539804,101770.0,101760.0,1.00688393]
[1762683366695,0.38539804,101770.0,101760.0,1.09517734]
[1762683366898,0.3617919,101770.0,101760.0,1.00688393]
[1762683370800,0.3617919,101770.0,101760.0,0.98034704]
[1762683371598,0.41453016,101770.0,101760.0,0.98034704]
[1762683373100,0.41453016,101770.0,101760.0,0.98034044]
[1762683373310,0.41453016,101770.0,101760.0,0.98034704]
[1762683374314,0.41453016,101770.0,101760.0,0.98234704]
[1762683375210,0.41453016,101770.0,101760.0,0.98134704]
[1762683375413,0.41453016,101770.0,101760.0,0.98334704]
[1762683385317,0.43201983,101770.0,101760.0,0.98334704]
[1762683388319,0.3617919,101770.0,101760.0,0.98334704]
[1762683389819,0.3617919,101770.0,101760.0,1.08164044]
[1762683390211,0.3617919,101770.0,101760.0,0.98334704]
[1762683392317,0.43201983,101770.0,101760.0,0.98334704]
[1762683392624,0.3617919,101770.0,101760.0,0.98334704]
[1762683394924,0.3617919,101770.0,101760.0,0.98234704]
[1762683395129,0.41463274,101770.0,101760.0,1.00861817]
[1762683395926,0.41463274,101770.0,101760.0,1.00661817]
[1762683397226,0.3617919,101770.0,101760.0,0.75001818]
[1762683397425,0.3617919,101770.0,101760.0,0.47744172]
[1762683397622,0.44957954,101770.0,101760.0,0.47744172]
[1762683398521,0.44957954,101770.0,101760.0,0.47644172]
[1762683398935,0.44957954,101770.0,101760.0,0.47544172]
[1762683401627,0.51992826,101770.0,101760.0,0.47544172]
[1762683401829,0.43214062,101770.0,101760.0,0.47544172]
[1762683404434,0.43214062,101770.0,101760.0,0.47644172]
[1762683405129,0.43214062,101770.0,101760.0,0.47544172]
[1762683405326,0.43214062,101770.0,101760.0,0.47644172]
[1762683405724,0.43214062,101770.0,101760.0,0.47544172]
[1762683407637,0.43214062,101770.0,101760.0,0.46544173]
[1762683407930,0.44957954,101770.0,101760.0,0.60775501]
[1762683408423,0.44957954,101770.0,101760.0,0.63333014]
[1762683408627,0.3617919,101770.0,101760.0,0.73163014]
[1762683409239,0.43210111,101770.0,101760.0,0.70605501]
[1762683410524,0.43210111,101770.0,101760.0,0.70705501]
[1762683411439,0.43210111,101770.0,101760.0,0.70805501]
[1762683412233,0.43210111,101770.0,101760.0,0.55975501]
[1762683418241,0.43210111,101770.0,101760.0,0.54975502]
[1762683418440,0.43210111,101770.0,101760.0,0.55975501]
[1762683425243,0.3617919,101770.0,101760.0,0.55975501]
[1762683425832,0.43210111,101770.0,101760.0,0.55875501]
[1762683426845,0.43210111,101770.0,101760.0,0.54376969]
[1762683427345,0.43210111,101770.0,101760.0,0.54276969]
[1762683428148,0.44957954,101770.0,101760.0,0.54276969]
[1762683428348,0.44957954,101770.0,101760.0,0.54176969]
[1762683428644,0.44957954,101770.0,101760.0,0.69006969]
[1762683429639,0.44957954,101770.0,101760.0,0.59176969]
[1762683431953,0.41458143,101770.0,101760.0,0.61715606]
[1762683435156,0.3617919,101770.0,101760.0,0.59176969]
[1762683438461,0.3617919,101770.0,101760.0,0.69006969]
[1762683439257,0.44957954,101770.0,101760.0,0.69006969]
[1762683440052,0.48477654,101770.0,101760.0,0.67408346]
[1762683440965,0.48477654,101770.0,101760.0,0.67508346]
[1762683441260,0.48477654,101770.0,101760.0,0.57678346]
[1762683441860,0.48477654,101770.0,101760.0,0.57578346]
[1762683444956,0.55513175,101770.0,101760.0,0.57578346]
[1762683445164,0.53754294,101770.0,101760.0,0.60114572]
[1762683445362,0.4145583,101770.0,101760.0,0.45284572]
[1762683446764,0.4145583,101770.0,101760.0,0.42748346]
[1762683446765,0.43214711,101770.0,101760.0,0.42748346]
[1762683447661,0.44973591,101770.0,101760.0,0.42748346]
[1762683450263,0.44973591,101770.0,101760.0,0.52578346]
[1762683450958,0.3617919,101770.0,101760.0,0.10829999]
[1762683451157,0.03946,101760.0,101740.0,0.3608]
[1762683451365,0.33455827,101750.0,101740.0,0.3608]
[1762683451564,0.1763,101750.0,101740.0,0.4591]
[1762683451867,0.32460386,101750.0,101740.0,0.4591]
[1762683452260,0.41252562,101750.0,101740.0,0.4591]
[1762683452566,0.32460386,101750.0,101740.0,0.4591]
[1762683452754,0.41252562,101750.0,101740.0,0.4591]
[1762683453270,0.41252562,101750.0,101740.0,0.4641]
[1762683453964,0.41252562,101750.0,101740.0,0.1033]
[1762683454468,0.1763,101740.0,101730.0,0.00014705]
[1762683454767,0.77268097,101740.0,101730.0,0.09844705]
[1762683455360,0.68475921,101740.0,101730.0,0.09844705]
[1762683456167,0.68475921,101740.0,101730.0,0.10144705]
[1762683456368,0.68475921,101740.0,101730.0,0.10544705]
[1762683456568,0.77268097,101740.0,101730.0,0.10544705]
[1762683458273,0.75490854,101740.0,101730.0,0.10544705]
[1762683458962,0.75490854,101740.0,101730.0,0.10244705]
[1762683460763,0.75490854,101740.0,101730.0,0.00414705]
[1762683462278,0.68475921,101740.0,101730.0,0.00414705]
[1762683463873,0.75490854,101740.0,101730.0,0.00414705]
[1762683465175,0.73728674,101740.0,101730.0,0.00414705]
[1762683466265,0.73728674,101740.0,101730.0,0.10244705]
[1762683467476,0.68475921,101740.0,101730.0,0.10244705]
[1762683468273,0.75490854,101740.0,101730.0,0.10044705]
[1762683468476,0.75490854,101740.0,101730.0,0.09844705]
[1762683468477,0.75890854,101740.0,101730.0,0.09844705]
[1762683468674,0.76190854,101740.0,101730.0,0.09844705]
[1762683469460,0.16062,101720.0,101710.0,0.5091]
[1762683469668,0.19562868,101720.0,101710.0,0.5091]
[1762683469864,0.34291771,101720.0,101710.0,0.5091]
[1762683471070,0.39543073,101720.0,101710.0,0.5091]
[1762683471374,0.39643073,101720.0,101710.0,0.5091]
[1762683472578,0.39643073,101720.0,101710.0,0.3608]
[1762683475172,0.36142205,101720.0,101710.0,0.3608]
[1762683477375,0.16041,101710.0,101700.0,0.36094705]
[1762683477681,0.3436137,101710.0,101700.0,0.36094705]
[1762683478180,0.36108772,101710.0,101700.0,0.36094705]
[1762683478576,0.36108772,101710.0,101700.0,0.36194705]
[1762683479080,0.37872403,101710.0,101700.0,0.00114705]
[1762683479281,0.16001,101700.0,101690.0,0.3608]
[1762683479483,0.21259264,101700.0,101690.0,0.3608]
[1762683479682,0.36049646,101700.0,101690.0,0.3608]
[1762683480577,0.36049646,101700.0,101690.0,0.3628]
[1762683480780,0.36049646,101700.0,101680.0,0.36101669]
[1762683480781,0.16001,101690.0,101680.0,0.36101669]
[1762683480978,0.16001,101670.0,101660.0,0.3608]
[1762683481177,0.035,101660.0,101650.0,0.43408]
[1762683481484,0.3947511,101660.0,101650.0,0.07328]
[1762683481683,0.35973357,101660.0,101650.0,0.07328]
[1762683482285,0.37234722,101660.0,101650.0,0.07328]
[1762683482783,0.16001,101650.0,101640.0,0.43422705]
[1762683482978,0.19498643,101650.0,101640.0,0.43422705]
[1762683483178,0.30756462,101650.0,101640.0,0.43422705]
[1762683484481,0.30756462,101650.0,101640.0,0.43822705]
[1762683484799,0.34036462,101650.0,101640.0,0.43822705]
[1762683493199,0.34036462,101650.0,101640.0,0.58652705]
[1762683495810,0.34036462,101650.0,101640.0,0.43822705]
[1762683498322,0.34036462,101650.0,101640.0,0.07742705]
[1762683502119,0.37534105,101650.0,101640.0,0.07742705]
[1762683502513,0.37534105,101650.0,101640.0,0.43822705]
[1762683502714,0.34036462,101650.0,101640.0,0.43822705]
[1762683505018,0.24391462,101650.0,101640.0,0.43822705]
[1762683505321,0.30536462,101650.0,101640.0,0.43822705]
[1762683505622,0.34036462,101650.0,101640.0,0.43822705]
[1762683506123,0.37534105,101650.0,101640.0,0.43822705]
[1762683508321,0.39289092,101650.0,101640.0,0.43822705]
[1762683508520,0.39289092,101650.0,101640.0,0.07742705]
[1762683508819,0.34036462,101650.0,101640.0,0.43822705]
[1762683509219,0.41049,101650.0,101640.0,0.43822705]
[1762683510619,0.41049,101650.0,101640.0,0.07742705]
[1762683510824,0.41049,101650.0,101640.0,0.22572705]
[1762683512626,0.41049,101650.0,101640.0,0.58652705]
[1762683514322,0.41049,101650.0,101640.0,0.43822705]
[1762683517127,0.41049,101650.0,101640.0,0.07742705]
[1762683518126,0.41049,101650.0,101640.0,0.43822705]
[1762683518626,0.34036462,101650.0,101640.0,0.43822705]
[1762683519230,0.39313041,101650.0,101640.0,0.43822705]
[1762683519420,0.39313041,101650.0,101640.0,0.58652705]
[1762683521028,0.23312041,101650.0,101640.0,0.58652705]
[1762683521426,0.29029041,101650.0,101640.0,0.58652705]
[1762683521828,0.34813041,101650.0,101640.0,0.58652705]
[1762683522228,0.38133041,101650.0,101640.0,0.58652705]
[1762683529341,0.39869,101650.0,101640.0,0.58652705]
[1762683533442,0.30765,101650.0,101640.0,0.58652705]
[1762683533739,0.39436,101650.0,101640.0,0.58652705]
[1762683534438,0.30765,101650.0,101640.0,0.58652705]
[1762683535242,0.23752462,101650.0,101640.0,0.58652705]
[1762683535439,0.32544638,101650.0,101640.0,0.58652705]
[1762683536837,0.39579869,101650.0,101640.0,0.58652705]
[1762683537041,0.39036693,101650.0,101640.0,0.58652705]
[1762683537429,0.25070693,101650.0,101640.0,0.93089645]
[1762683537637,0.0689183,101650.0,101640.0,1.07868705]
[1762683537842,0.05276368,101650.0,101640.0,1.17709645]
[1762683538147,0.20076721,101650.0,101640.0,0.53663645]
[1762683538442,0.15383034,101650.0,101640.0,1.17709645]
[1762683538740,0.15383034,101650.0,101640.0,0.93113645]
[1762683538936,0.15383034,101650.0,101640.0,1.17709645]
[1762683539744,0.03516313,101650.0,101640.0,0.93113645]
[1762683540042,0.03516313,101650.0,101640.0,1.17709645]
[1762683540242,3.13e-06,101650.0,101640.0,1.17709645]
[1762683540445,0.01261365,101660.0,101640.0,1.80222585]
[1762683540640,0.15880936,101670.0,101650.0,0.60676]
[1762683540944,0.22485326,101670.0,101660.0,0.3608]
[1762683542240,0.23733567,101670.0,101660.0,0.3608]
[1762683542937,0.23733567,101670.0,101660.0,0.5091]
[1762683543344,0.23833567,101670.0,101660.0,0.5091]
[1762683543740,0.23833567,101670.0,101660.0,0.5111]
[1762683543940,0.23733567,101670.0,101660.0,0.5131]
[1762683544536,0.23733567,101670.0,101660.0,0.5111]
[1762683544742,0.23733567,101670.0,101660.0,0.5131]
[1762683545236,0.16698336,101670.0,101660.0,0.5131]
[1762683558259,0.52778336,101670.0,101660.0,0.1523]
[1762683558754,0.59813567,101670.0,101660.0,0.1523]
[1762683558959,0.23733567,101670.0,101660.0,0.1523]
[1762683559157,0.16698336,101670.0,101660.0,0.1523]
[1762683559461,0.25490512,101670.0,101660.0,0.1523]
[1762683559760,0.61570512,101670.0,101660.0,0.1523]
[1762683564067,0.13471,101660.0,101650.0,0.06889]
[1762683564267,0.20486437,101660.0,101650.0,0.06889]
[1762683564463,0.35328857,101660.0,101650.0,0.06889]
[1762683565266,0.37105596,101660.0,101650.0,0.06889]
[1762683565975,0.37105596,101660.0,101650.0,0.07189]
[1762683566362,0.37105596,101660.0,101650.0,0.07389]
[1762683567272,0.37105596,101660.0,101650.0,0.43469]
[1762683568574,0.38719596,101660.0,101650.0,0.43469]
[1762683569067,0.38719596,101660.0,101650.0,0.07389]
[1762683569670,0.38719596,101660.0,101650.0,0.07089]
[1762683569874,0.38919596,101660.0,101650.0,0.06889]
[1762683570065,0.39019596,101660.0,101650.0,0.06889]
[1762683571776,0.39019596,101660.0,101650.0,0.42969]
[1762683572573,0.3022742,101660.0,101650.0,0.42969]
[1762683573369,0.39019596,101660.0,101650.0,0.06889]
[1762683573571,0.39019596,101660.0,101650.0,0.42969]
[1762683574171,0.39019596,101660.0,101650.0,0.41368654]
[1762683575168,0.37240824,101660.0,101650.0,0.41368654]
[1762683576277,0.35487666,101660.0,101650.0,0.41368654]
[1762683580875,0.35487666,101660.0,101650.0,1.20672]
[1762683580876,0.07174246,101660.0,101650.0,1.20672]
[1762683581076,0.07028109,101670.0,101660.0,0.0983902]
[1762683581274,0.01171409,101680.0,101660.0,0.24592]
[1762683581479,0.02861,101690.0,101670.0,0.27239311]
[1762683581779,0.14785779,101680.0,101670.0,0.12489351]
[1762683581984,0.27502779,101690.0,101680.0,0.0983707]
[1762683582179,0.02861,101690.0,101680.0,0.3608]
[1762683582380,0.17535525,101690.0,101680.0,0.7050107]
[1762683582578,0.14674525,101690.0,101680.0,0.4591707]
[1762683582884,0.14674525,101690.0,101680.0,0.7050107]
[1762683583082,0.14674525,101690.0,101680.0,0.4591707]
[1762683583279,0.14674525,101690.0,101680.0,0.4601707]
[1762683583484,0.14674525,101690.0,101680.0,0.7060107]
[1762683583686,0.14674525,101690.0,101680.0,0.4601707]
[1762683583882,0.14674525,101690.0,101680.0,0.7060107]
[1762683584180,0.14674525,101690.0,101680.0,0.7070107]
[1762683584584,0.14674525,101690.0,101680.0,0.4611707]
[1762683584782,0.14674525,101690.0,101680.0,0.7070107]
[1762683585387,0.17552525,101690.0,101680.0,0.7070107]
[1762683585577,0.17552525,101690.0,101680.0,0.4611707]
[1762683587093,0.17552525,101690.0,101680.0,0.76025724]
[1762683587385,0.14674525,101690.0,101680.0,0.76025724]
[1762683587888,0.14674525,101690.0,101680.0,1.00609724]
[1762683588088,0.14674525,101690.0,101680.0,0.51405724]
[1762683588290,0.00014705,101700.0,101690.0,0.0983611]
[1762683588475,0.00014705,101700.0,101690.0,0.4591611]
[1762683588682,0.14862325,101700.0,101690.0,0.7050011]
[1762683589083,0.14862325,101700.0,101690.0,0.4591611]
[1762683589391,0.14862325,101700.0,101690.0,0.7050011]
[1762683589585,0.14862325,101700.0,101690.0,0.4591611]
[1762683589988,0.14862325,101700.0,101690.0,0.7050011]
[1762683590692,0.14862325,101700.0,101690.0,0.4591611]
[1762683590892,0.14862325,101700.0,101690.0,0.7050011]
[1762683591100,0.14862325,101700.0,101690.0,0.4591611]
[1762683591479,0.14862325,101700.0,101690.0,0.7050011]
[1762683591792,0.14862325,101700.0,101690.0,0.4591611]
[1762683592086,0.27052325,101700.0,101690.0,0.3608]
[1762683598489,0.27152325,101700.0,101690.0,0.3608]
[1762683599090,0.27052325,101700.0,101690.0,0.3608]
[1762683599290,0.27352325,101700.0,101690.0,0.3608]
[1762683599692,0.27152325,101700.0,101690.0,0.3608]
[1762683599895,0.27252325,101700.0,101690.0,0.3608]
[1762683602797,0.22623325,101700.0,101690.0,0.51204764]
[1762683603002,0.17940325,101700.0,101690.0,0.41368654]
[1762683603494,0.17940325,101700.0,101690.0,0.51204764]
[1762683603997,0.27651325,101700.0,101690.0,0.41368654]
[1762683604399,0.27551325,101700.0,101690.0,0.41368654]
[1762683605003,0.27451325,101700.0,101690.0,0.41368654]
[1762683607402,0.27451325,101700.0,101690.0,0.3608]
[1762683609200,0.32682558,101700.0,101690.0,0.3608]
[1762683612906,0.32782558,101700.0,101690.0,0.3608]
[1762683613306,0.32782558,101700.0,101690.0,0.41368654]
[1762683614202,0.32882558,101700.0,101690.0,0.41368654]
[1762683615209,0.34664729,101700.0,101690.0,0.41368654]
[1762683615411,0.34564729,101700.0,101690.0,0.41368654]
[1762683615709,0.34464729,101700.0,101690.0,0.41368654]
[1762683619712,0.36243501,101700.0,101690.0,0.41368654]
[1762683622412,0.36443501,101700.0,101690.0,0.41368654]
[1762683623213,0.36443501,101700.0,101690.0,0.3976901]
[1762683624219,0.36443501,101700.0,101690.0,0.41368654]
[1762683625310,0.34572753,101700.0,101690.0,0.41368654]
[1762683626107,0.34572753,101700.0,101680.0,0.3608]
[1762683626108,0.11579,101690.0,101680.0,0.3608]
[1762683626410,0.11579,101680.0,101670.0,0.36094705]
[1762683626714,0.33352725,101680.0,101670.0,0.36094705]
[1762683627715,0.33352725,101680.0,101670.0,0.36294705]
[1762683629113,0.33352725,101680.0,101670.0,0.36394705]
[1762683630416,0.33452725,101680.0,101670.0,0.36194705]
[1762683631309,0.33552725,101680.0,101670.0,0.36094705]
[1762683634611,0.33452725,101680.0,101670.0,0.36094705]
[1762683634809,0.33352725,101680.0,101670.0,0.36094705]
[1762683635318,0.31591448,101680.0,101670.0,0.36094705]
[1762683636122,0.31591448,101680.0,101670.0,0.36394705]
[1762683637414,0.35098512,101680.0,101670.0,0.36394705]
[1762683638125,0.11579,101660.0,101650.0,0.3608]
[1762683638421,0.29808281,101660.0,101650.0,0.3608]
[1762683639310,0.29808281,101660.0,101650.0,0.3618]
[1762683639918,0.2630434,101660.0,101650.0,0.3618]
[1762683640128,0.33326403,101660.0,101650.0,0.001]
[1762683640320,0.69406403,101660.0,101650.0,0.001]
[1762683640723,0.69406403,101660.0,101650.0,0.002]
[1762683642623,0.11579,101650.0,101640.0,0.00014705]
[1762683642924,0.26279208,101650.0,101640.0,0.00014705]
[1762683644030,0.26279208,101650.0,101640.0,0.00214705]
[1762683644230,0.29776251,101650.0,101640.0,0.00214705]
[1762683644530,0.29776251,101650.0,101640.0,0.00414705]
[1762683648533,0.10054,101620.0,101610.0,0.36090376]
[1762683648831,0.24878436,101620.0,101610.0,0.36090376]
[1762683650435,0.24878436,101620.0,101610.0,0.36290376]
[1762683652039,0.24878436,101620.0,101610.0,0.36490376]
[1762683653430,0.2604127,101620.0,101610.0,0.36490376]
[1762683654330,0.2604127,101620.0,101610.0,0.4459722]
[1762683659033,0.2604127,101620.0,101610.0,0.5444107]
[1762683659333,0.2604127,101620.0,101610.0,0.4459722]
[1762683660333,0.17081436,101620.0,101610.0,0.5444106]
[1762683660535,0.17081436,101620.0,101610.0,0.4459722]
[1762683660732,0.17081436,101620.0,101610.0,0.7904506]
[1762683660928,0.17081436,101620.0,101610.0,0.4459722]
[1762683661135,0.21108436,101620.0,101610.0,0.4459722]
[1762683661532,0.21108436,101620.0,101610.0,0.5444106]
[1762683661738,0.17081436,101620.0,101610.0,0.5444106]
[1762683661940,0.17081436,101620.0,101610.0,0.7904506]
[1762683662442,0.14824436,101620.0,101610.0,0.7904506]
[1762683662644,0.03420941,101630.0,101620.0,0.0984287]
[1762683662843,0.03420941,101630.0,101620.0,0.3608]
[1762683663044,0.18266493,101630.0,101620.0,0.6068]
[1762683663244,0.17117257,101630.0,101620.0,0.7052287]
[1762683663441,0.14860257,101630.0,101620.0,0.7052287]
[1762683664044,0.14860257,101630.0,101620.0,0.7062287]
[1762683664746,0.17195257,101630.0,101620.0,0.7062287]
[1762683665540,0.14860257,101630.0,101620.0,0.7062287]
[1762683665843,0.10603,101650.0,101630.0,0.098419]
[1762683666034,0.10603,101650.0,101640.0,0.7216]
[1762683666239,0.25402444,101650.0,101640.0,0.7216]
[1762683666431,0.28899487,101650.0,101640.0,0.7216]
[1762683666836,0.28899487,101650.0,101640.0,0.80266844]
[1762683667045,0.25402444,101650.0,101640.0,0.7216]
[1762683667255,0.29199487,101650.0,101640.0,0.7216]
[1762683667456,0.25702444,101650.0,101640.0,0.8200094]
[1762683667760,0.25702444,101650.0,101640.0,0.7216]
[1762683668057,0.25802444,101650.0,101640.0,0.7216]
[1762683668259,0.25502444,101650.0,101640.0,0.8200094]
[1762683668457,0.25502444,101650.0,101640.0,0.7226]
[1762683668652,0.26661089,101650.0,101640.0,0.7226]
[1762683669959,0.26561089,101650.0,101640.0,0.97056]
[1762683670158,0.26561089,101650.0,101640.0,0.7246]
[1762683672362,0.26561089,101650.0,101640.0,0.8230094]
[1762683673060,0.26561089,101650.0,101640.0,0.7246]